fUSD/lending_fUSD_20240729
["ID","MTS","AMOUNT","RATE_DAILY","PERIOD"]
[333592412,1722263438691,-600.0,0.000107,3]
[333592413,1722263438701,-271.676338,0.00010775,2]
[333592414,1722263438711,-8956.266362,0.00010775,2]
[333592415,1722263438720,-9974.898385,0.00010775,2]
[333592416,1722263438729,-409.958915,0.00010775,2]
[333592417,1722263438738,-5748.01580052,0.0001079,2]
[333592418,1722263438750,-34500.99999998,0.0001079,2]
[333592419,1722263438765,-366.962341,0.0001079,2]
[333592420,1722263438788,-6060.00003987,0.0001079,2]
[333592421,1722263438799,-400.0,0.0001079,2]
[333592422,1722263438810,-2773.28413778,0.0001079,2]
[333592423,1722263438822,-6867.8549825,0.0001079,2]
[333592424,1722263438834,-7422.79429835,0.0001079,2]
[333592425,1722263438842,-874.40709415,0.000108,3]
[333592426,1722263438863,-125.59290585,0.000108,3]
[333592427,1722263438873,-200.0,0.00010859,2]
[333592428,1722263438883,-112.1165275,0.0001088,2]
[333592429,1722263438895,-1448.44556688,0.0001088,2]
[333592430,1722263438906,-19569.88548563,0.0001088,2]
[333592431,1722263438917,-1518.02409611,0.00010889,2]
[333592432,1722263438931,-13284.91921825,0.00010889,2]
[333592438,1722263441645,-4146.23536028,0.00010889,2]
[333592439,1722263441657,-545.98917862,0.00010889,2]
[333592440,1722263441667,-22.75233511,0.00010889,2]
[333592441,1722263441679,-138.75033327,0.00010889,2]
[333592442,1722263441689,-161.50266836,0.00010895,2]
[333592443,1722263441698,-534.92199837,0.00010899,2]
[333592444,1722263441709,-3254.52213642,0.00010899,2]
[333592445,1722263441719,-74.27786359,0.00010899,2]
[333592446,1722263441730,-3100.09378254,0.00010899,2]
[333592447,1722263441782,-615.07248858,0.00010899,2]
[333592448,1722263441791,-3789.44413471,0.00010899,2]
[333592449,1722263441801,-3789.44413471,0.00010899,2]
[333592450,1722263441810,-3789.44413471,0.00010899,2]
[333592451,1722263441820,-3789.44413471,0.00010899,2]
[333592452,1722263441829,-3789.44413471,0.00010899,2]
[333592453,1722263441839,-3789.44413471,0.00010899,2]
[333592454,1722263441849,-3789.44413471,0.00010899,2]
[333592455,1722263441858,-161.50266836,0.000109,2]
[333592456,1722263441868,-428.25410448,0.000109,2]
[333592457,1722263441877,-3789.44413471,0.000109,2]
[333592458,1722263441886,-221.07,0.00010904,3]
[333592459,1722263441896,-271.676338,0.00010907,2]
[333592460,1722263441905,-8956.266362,0.00010907,2]
[333592461,1722263441915,-9974.898385,0.00010907,2]
[333592462,1722263441928,-409.958915,0.00010907,2]
[333592463,1722263441938,-151.34,0.00010949,2]
[333592464,1722263441947,-500.0,0.00010958,2]
[333592465,1722263441957,-500.0,0.00010958,2]
[333592466,1722263441967,-500.0,0.00010958,2]
[333592467,1722263441977,-178.46047162,0.00010958,2]
[333592468,1722263441986,-500.0,0.00010958,2]
[333592469,1722263441995,-500.0,0.00010958,2]
[333592470,1722263442006,-500.0,0.00010958,2]
[333592471,1722263442017,-500.0,0.00010958,2]
[333592472,1722263442027,-500.0,0.00010958,2]
[333592473,1722263442036,-500.0,0.00010958,2]
[333592474,1722263442045,-500.0,0.00010958,2]
[333592475,1722263442054,-500.0,0.00010958,2]
[333592476,1722263442063,-500.0,0.00010958,2]
[333592477,1722263442072,-500.0,0.00010958,2]
[333592478,1722263442081,-510.87433701,0.00010958,2]
[333592479,1722263442090,-500.0,0.00010958,2]
[333592480,1722263442099,-500.0,0.00010958,2]
[333592481,1722263442108,-500.0,0.00010958,2]
[333592482,1722263442117,-523.96709346,0.00010958,2]
[333592483,1722263442127,-500.0,0.00010958,2]
[333592484,1722263442136,-500.0,0.00010958,2]
[333592485,1722263442145,-500.0,0.00010958,2]
[333592486,1722263442154,-507.81424166,0.00010958,2]
[333592488,1722263442164,-500.0,0.00010958,2]
[333592490,1722263442173,-503.50536629,0.00010958,2]
[333592492,1722263442182,-500.0,0.00010958,2]
[333592494,1722263442192,-501.25145604,0.00010958,2]
[333592496,1722263442201,-500.0,0.00010958,2]
[333592498,1722263442210,-503.02702932,0.00010958,2]
[333592499,1722263442219,-500.0,0.00010958,2]
[333592501,1722263442229,-500.0,0.00010958,2]
[333592503,1722263442239,-500.0,0.00010958,2]
[333592505,1722263442248,-504.91211378,0.00010958,2]
[333592507,1722263442257,-500.0,0.00010958,2]
[333592509,1722263442267,-502.01461985,0.00010958,2]
[333592511,1722263442278,-201.69959612,0.00010958,2]
[333592514,1722263442293,-436.76040388,0.00010958,2]
[333592516,1722263442302,-117.23559612,0.00010958,2]
[333592518,1722263442313,-382.76440388,0.00010958,2]
[333592520,1722263442323,-534.58,0.00010958,2]
[333592522,1722263442332,-500.0,0.00010958,2]
[333592524,1722263442341,-500.0,0.00010958,2]
[333592526,1722263442350,-500.0,0.00010958,2]
[333592528,1722263442359,-508.3,0.00010958,2]
[333592530,1722263442368,-320.25559612,0.00010958,2]
[333592532,1722263442380,-319.29440388,0.00010958,2]
[333592534,1722263442389,-500.0,0.00010958,2]
[333592536,1722263442398,-500.0,0.00010958,2]
[333592538,1722263442408,-500.0,0.00010958,2]
[333592540,1722263442418,-177.70559612,0.00010958,2]
[333592542,1722263442430,-322.29440388,0.00010958,2]
[333592544,1722263442440,-556.63,0.00010958,2]
[333592546,1722263442449,-500.0,0.00010958,2]
[333592548,1722263442459,-500.0,0.00010958,2]
[333592550,1722263442469,-469.98,0.00010958,2]
[333592552,1722263442479,-500.0,0.00010958,2]
[333592554,1722263442489,-328.33164857,0.00010958,2]
[333592556,1722263442499,-500.0,0.00010958,2]
[333592558,1722263442508,-245.83478755,0.00010958,2]
[333592577,1722263443330,-254.16521245,0.00010958,2]
[333592578,1722263443340,-269.27478755,0.00010958,2]
[333592579,1722263443352,-230.72521245,0.00010958,2]
[333592580,1722263443361,-500.0,0.00010958,2]
[333592581,1722263443371,-506.54,0.00010958,2]
[333592582,1722263443380,-500.0,0.00010958,2]
[333592583,1722263443389,-500.0,0.00010958,2]
[333592584,1722263443399,-500.0,0.00010958,2]
[333592585,1722263443408,-500.0,0.00010958,2]
[333592586,1722263443417,-500.0,0.00010958,2]
[333592587,1722263443426,-500.0,0.00010958,2]
[333592588,1722263443436,-500.0,0.00010958,2]
[333592589,1722263443445,-447.11387461,0.00010958,2]
[333592590,1722263443456,-52.88612539,0.00010958,2]
[333592591,1722263443465,-565.22,0.00010958,2]
[333592592,1722263443474,-500.0,0.00010958,2]
[333592593,1722263443483,-263.17387461,0.00010958,2]
[333592594,1722263443495,-236.82612539,0.00010958,2]
[333592595,1722263443504,-500.0,0.00010958,2]
[333592596,1722263443514,-89.43288933,0.00010958,2]
[333592597,1722263443527,-410.56711067,0.00010958,2]
[333592598,1722263443537,-500.0,0.00010958,2]
[333592599,1722263443547,-500.0,0.00010958,2]
[333592600,1722263443556,-500.0,0.00010958,2]
[333592601,1722263443565,-500.0,0.00010958,2]
[333592602,1722263443575,-398.96,0.00010958,2]
[333592603,1722263443584,-500.0,0.00010958,2]
[333592604,1722263443593,-500.0,0.00010958,2]
[333592605,1722263443602,-500.0,0.00010958,2]
[333592606,1722263443611,-500.0,0.00010958,2]
[333592607,1722263443620,-500.0,0.00010958,2]
[333592608,1722263443629,-160.6934963,0.00010958,2]
[333592609,1722263443639,-500.0,0.00010958,2]
[333592610,1722263443648,-500.0,0.00010958,2]
[333592611,1722263443657,-527.88,0.00010958,2]
[333592612,1722263443667,-500.0,0.00010958,2]
[333592613,1722263443676,-500.0,0.00010958,2]
[333592614,1722263443685,-500.0,0.00010958,2]
[333592615,1722263443694,-500.0,0.00010958,2]
[333592616,1722263443704,-500.0,0.00010958,2]
[333592618,1722263443713,-500.0,0.00010958,2]
[333592620,1722263443723,-500.0,0.00010958,2]
[333592622,1722263443733,-500.0,0.00010958,2]
[333592624,1722263443743,-500.0,0.00010958,2]
[333592626,1722263443752,-500.0,0.00010958,2]
[333592628,1722263443761,-500.0,0.00010958,2]
[333592630,1722263443773,-500.0,0.00010958,2]
[333592632,1722263443782,-500.0,0.00010958,2]
[333592634,1722263443792,-500.0,0.00010958,2]
[333592636,1722263443801,-500.0,0.00010958,2]
[333592638,1722263443811,-500.0,0.00010958,2]
[333592640,1722263443820,-500.0,0.00010958,2]
[333592641,1722263443829,-382.60008386,0.00010958,2]
[333592642,1722263443839,-500.0,0.00010958,2]
[333592643,1722263443848,-500.0,0.00010958,2]
[333592644,1722263443858,-500.0,0.00010958,2]
[333592645,1722263443867,-500.0,0.00010958,2]
[333592646,1722263443877,-500.0,0.00010958,2]
[333592647,1722263443887,-500.0,0.00010958,2]
[333592648,1722263443896,-500.0,0.00010958,2]
[333592649,1722263443905,-500.0,0.00010958,2]
[333592650,1722263443915,-500.0,0.00010958,2]
[333592651,1722263443929,-500.0,0.00010958,2]
[333592652,1722263443939,-500.0,0.00010958,2]
[333592653,1722263443948,-500.0,0.00010958,2]
[333592654,1722263443958,-500.0,0.00010958,2]
[333592655,1722263443967,-211.73,0.00010958,2]
[333592656,1722263443976,-500.0,0.00010958,2]
[333592657,1722263443986,-500.0,0.00010958,2]
[333592658,1722263443997,-518.12853938,0.00010958,2]
[333592659,1722263444007,-500.0,0.00010958,2]
[333592660,1722263444016,-500.0,0.00010958,2]
[333592661,1722263444027,-500.0,0.00010958,2]
[333592662,1722263444036,-423.38,0.00010958,2]
[333592663,1722263444045,-500.0,0.00010958,2]
[333592664,1722263444054,-500.0,0.00010958,2]
[333592665,1722263444063,-500.0,0.00010958,2]
[333592666,1722263444072,-500.0,0.00010958,2]
[333592667,1722263444082,-500.0,0.00010958,2]
[333592668,1722263444091,-1000.0,0.00010959,2]
[333592669,1722263444100,-1000.0,0.00010959,2]
[333592670,1722263444109,-1000.0,0.00010959,2]
[333592671,1722263444118,-1000.0,0.00010959,2]
[333592672,1722263444127,-250.0,0.00010959,2]
[333592673,1722263444137,-500.0,0.00010964,2]
[333592674,1722263444146,-500.0,0.00010964,2]
[333592675,1722263444156,-500.0,0.00010964,2]
[333592676,1722263444165,-500.0,0.00010964,2]
[333592677,1722263444174,-500.0,0.00010964,2]
[333592678,1722263444183,-500.0,0.00010964,2]
[333592679,1722263444193,-500.0,0.00010964,2]
[333592680,1722263444202,-337.0,0.00010964,2]
[333592681,1722263444212,-500.0,0.00010964,2]
[333592682,1722263444391,-500.0,0.00010964,2]
[333592683,1722263444401,-553.88,0.00010965,2]
[333592684,1722263444410,-530.40017171,0.00010965,2]
[333592685,1722263444419,-631.18,0.00010965,2]
[333592686,1722263444429,-500.0,0.00010965,2]
[333592687,1722263444438,-500.0,0.00010965,2]
[333592688,1722263444447,-500.0,0.00010965,2]
[333592689,1722263444456,-500.0,0.00010965,2]
[333592690,1722263444465,-500.0,0.00010965,2]
[333592691,1722263444475,-500.0,0.00010965,2]
[333592692,1722263444484,-500.0,0.00010965,2]
[333592693,1722263444493,-547.97000001,0.00010965,2]
[333592694,1722263444503,-500.0,0.00010965,2]
[333592695,1722263444512,-500.0,0.00010965,2]
[333592696,1722263444524,-500.0,0.00010965,2]
[333592697,1722263444533,-279.62155731,0.00010965,2]
[333592698,1722263444543,-500.0,0.00010965,2]
[333592699,1722263444552,-582.57,0.00010965,2]
[333592700,1722263444561,-500.00000001,0.00010965,2]
[333592701,1722263444571,-500.0,0.00010965,2]
[333592702,1722263444581,-500.0,0.00010965,2]
[333592703,1722263444590,-65118.37187228,0.00010966,2]
[333592704,1722263444599,-10327.00008,0.00010989,2]
[333592705,1722263444608,-20302.53448041,0.0001099,6]
[333592706,1722263444620,-333.59523142,0.0001099,6]
[333592707,1722263444631,-75802.6313046,0.0001099,6]
[333592708,1722263444649,-927.915154,0.0001099,6]
[333592709,1722263444659,-5975.35005171,0.0001099,6]
[333592710,1722263444670,-966.54999995,0.0001099,6]
[333592711,1722263444681,-7261.36822493,0.0001099,6]
[333592714,1722263449751,-1175.55550787,0.0001099,6]
[333592715,1722263449763,-3224.0758753,0.0001099,6]
[333592716,1722263449776,-5584.88640838,0.0001099,6]
[333592717,1722263449788,-1663.6,0.0001099,6]
[333592718,1722263449799,-1412.93673964,0.0001099,6]
[333592719,1722263449811,-4883.9047737,0.0001099,6]
[333592720,1722263449822,-591.5645175,0.0001099,6]
[333592721,1722263449834,-500.0,0.0001099,6]
[333592722,1722263449845,-690.43,0.0001099,6]
[333592723,1722263449860,-333.66403507,0.0001099,6]
[333592724,1722263449872,-619.76020313,0.0001099,6]
[333592725,1722263449883,-1140.33466279,0.0001099,6]
[333592726,1722263449910,-10341.0162,0.0001099,6]
[333592727,1722263449953,-21708.48171763,0.0001099,6]
[333592728,1722263449965,-1020.87821306,0.0001099,6]
[333592729,1722263450101,-953.42856251,0.0001099,6]
[333592730,1722263450111,-150.384,0.0001099,2]
[333592731,1722263450121,-500.0,0.00010995,2]
[333592732,1722263450131,-500.0,0.00010995,2]
[333592733,1722263450140,-417.31,0.00010995,2]
[333592735,1722263450149,-500.0,0.00010995,2]
[333592736,1722263450159,-500.0,0.00010995,2]
[333592737,1722263450168,-500.0,0.00010995,2]
[333592738,1722263450178,-500.0,0.00010995,2]
[333592739,1722263450187,-1386.0612488,0.00010995,2]
[333592740,1722263450231,-48613.9387512,0.00010995,2]
[333592741,1722263450241,-500.0,0.00010996,2]
[333592742,1722263450250,-504.75079075,0.00010996,2]
[333592743,1722263450260,-500.0,0.00010996,2]
[333592744,1722263450269,-213.62,0.00010996,2]
[333592745,1722263450278,-293.14,0.00010996,2]
[333592746,1722263450287,-300.63,0.00010997,2]
[333592747,1722263450297,-238.89763512,0.00010997,2]
[333592748,1722263450306,-500.0,0.00010997,2]
[333592749,1722263450316,-500.0,0.00010997,2]
[333592750,1722263450325,-7895.19879925,0.00010997,2]
[333592751,1722263450334,-500.0,0.00010997,2]
[333592752,1722263450343,-500.0,0.00010997,2]
[333592753,1722263450352,-500.0,0.00010997,2]
[333592754,1722263450362,-500.0,0.00010997,2]
[333592755,1722263450371,-500.0,0.00010997,2]
[333592756,1722263450380,-500.0,0.00010997,2]
[333592757,1722263450389,-500.0,0.00010997,2]
[333592758,1722263450399,-60489.5133379,0.00010998,2]
[333592759,1722263450408,-500.0,0.00010998,2]
[333592760,1722263450418,-500.0,0.00010998,2]
[333592761,1722263450427,-500.0,0.00010998,2]
[333592762,1722263450436,-161.84,0.00010998,2]
[333592763,1722263450446,-433.43301727,0.00010998,2]
[333592764,1722263450455,-563.48,0.00010998,2]
[333592765,1722263450464,-1175.0,0.00010998,2]
[333592766,1722263450474,-292.33438899,0.00010999,2]
[333592767,1722263450483,-3907.77332242,0.00010999,2]
[333592768,1722263450492,-553.88,0.00010999,2]
[333592769,1722263450501,-553.88,0.00010999,2]
[333592770,1722263450511,-553.88,0.00010999,2]
[333592771,1722263450520,-553.88,0.00010999,2]
[333592772,1722263450531,-553.88,0.00010999,2]
[333592773,1722263450540,-553.88,0.00010999,2]
[333592774,1722263450549,-553.88,0.00010999,2]
[333592775,1722263450558,-553.88,0.00010999,2]
[333592776,1722263450567,-553.88,0.00010999,2]
[333592777,1722263450577,-553.88,0.00010999,2]
[333592778,1722263450586,-553.88,0.00010999,2]
[333592779,1722263450595,-553.88,0.00010999,2]
[333592780,1722263450605,-553.88,0.00010999,2]
[333592781,1722263450614,-553.88,0.00010999,2]
[333592782,1722263450623,-553.88,0.00010999,2]
[333592783,1722263450633,-553.88,0.00010999,2]
[333592784,1722263450642,-553.88,0.00010999,2]
[333592785,1722263450651,-553.88,0.00010999,2]
[333592786,1722263450661,-553.88,0.00010999,2]
[333592787,1722263450670,-553.88,0.00010999,2]
[333592788,1722263450679,-553.88,0.00010999,2]
[333592789,1722263450689,-553.88,0.00010999,2]
[333592790,1722263450698,-554.05,0.00010999,2]
[333592791,1722263450707,-247.11,0.00010999,2]
[333592792,1722263450716,-500.0,0.00010999,2]
[333592793,1722263450725,-500.0,0.00010999,2]
[333592794,1722263450734,-500.0,0.00010999,2]
[333592795,1722263450746,-500.0,0.00010999,2]
[333592796,1722263450755,-591.19,0.00010999,2]
[333592797,1722263450764,-500.0,0.00010999,2]
[333592798,1722263450774,-429.35,0.00010999,2]
[333592799,1722263450787,-500.0,0.00010999,2]
[333592800,1722263450796,-500.0,0.00010999,2]
[333592801,1722263450806,-513.18802723,0.00010999,2]
[333592802,1722263450815,-500.0,0.00010999,2]
[333592803,1722263450824,-406.90806742,0.00010999,2]
[333592804,1722263450834,-500.0,0.00010999,2]
[333592805,1722263450843,-500.0,0.00010999,2]
[333592806,1722263450852,-500.0,0.00010999,2]
[333592807,1722263450861,-500.0,0.00010999,2]
[333592808,1722263450870,-500.0,0.00010999,2]
[333592809,1722263450880,-500.0,0.00010999,2]
[333592810,1722263450889,-500.0,0.00010999,2]
[333592811,1722263450900,-500.0,0.00010999,2]
[333592812,1722263450910,-500.0,0.00010999,2]
[333592813,1722263450922,-500.0,0.00010999,2]
[333592814,1722263450932,-500.0,0.00010999,2]
[333592815,1722263450941,-582.57,0.00010999,2]
[333592816,1722263450950,-582.57,0.00010999,2]
[333592817,1722263450959,-582.57,0.00010999,2]
[333592818,1722263450970,-582.57,0.00010999,2]
[333592819,1722263450979,-500.0,0.00010999,2]
[333592820,1722263450988,-582.57,0.00010999,2]
[333592821,1722263450997,-500.0,0.00010999,2]
[333592822,1722263451008,-582.57,0.00010999,2]
[333592823,1722263451017,-500.0,0.00010999,2]
[333592824,1722263451027,-582.57,0.00010999,2]
[333592825,1722263451038,-500.0,0.00010999,2]
[333592826,1722263451047,-582.57,0.00010999,2]
[333592827,1722263451056,-500.0,0.00010999,2]
[333592828,1722263451066,-500.0,0.00010999,2]
[333592829,1722263451075,-500.0,0.00010999,2]
[333592830,1722263451085,-500.0,0.00010999,2]
[333592831,1722263451094,-582.57,0.00010999,2]
[333592832,1722263451103,-500.0,0.00010999,2]
[333592833,1722263451112,-582.57,0.00010999,2]
[333592834,1722263451121,-500.0,0.00010999,2]
[333592835,1722263451130,-500.0,0.00010999,2]
[333592836,1722263451140,-582.57,0.00010999,2]
[333592837,1722263451149,-500.0,0.00010999,2]
[333592838,1722263451158,-582.57,0.00010999,2]
[333592839,1722263451168,-500.0,0.00010999,2]
[333592840,1722263451177,-582.57,0.00010999,2]
[333592841,1722263451186,-582.57,0.00010999,2]
[333592842,1722263451195,-234.8798,0.00010999,2]
[333592843,1722263451205,-582.57,0.00010999,2]
[333592844,1722263451214,-582.57,0.00010999,2]
[333592845,1722263451223,-582.57,0.00010999,2]
[333592846,1722263451232,-582.57,0.00010999,2]
[333592847,1722263451241,-582.57,0.00010999,2]
[333592848,1722263451250,-150.0,0.00010999,2]
[333592849,1722263451260,-582.57,0.00010999,2]
[333592850,1722263451269,-582.57,0.00010999,2]
[333592851,1722263451278,-582.57,0.00010999,2]
[333592852,1722263451287,-582.74,0.00010999,2]
[333592853,1722263451297,-500.0,0.00010999,2]
[333592854,1722263451306,-500.0,0.00010999,2]
[333592855,1722263451315,-281.95,0.00010999,2]
[333592856,1722263451325,-500.0,0.00010999,2]
[333592857,1722263451334,-612.69,0.00010999,2]
[333592858,1722263451343,-531.055,0.00010999,2]
[333592859,1722263451351,-500.0,0.00010999,2]
[333592860,1722263451361,-500.0,0.00010999,2]
[333592861,1722263451370,-500.0,0.00010999,2]
[333592862,1722263451379,-500.0,0.00010999,2]
[333592863,1722263451388,-642.34,0.00010999,2]
[333592864,1722263451397,-500.0,0.00010999,2]
[333592865,1722263451407,-392.88510409,0.00010999,2]
[333592866,1722263451416,-254.43495358,0.00010999,2]
[333592867,1722263451426,-622.0,0.00011,2]
[333592868,1722263451435,-330061.46457869,0.00011,2]
[333592869,1722263451444,-527612.00299554,0.00011,2]
[333592870,1722263451458,-324.81,0.00011,2]
[333592890,1722264575793,175.28772076,6.766e-05,2]
[333592892,1722264625305,160.53022654,6.766e-05,2]
[333592905,1722264632399,-675.94,8.219e-05,2]
[333592907,1722264632409,-149.83885809,9.708e-05,2]
[333592913,1722264632457,-553.0,9.708e-05,2]
[333592917,1722264632517,-1258.84114191,9.708e-05,2]
[333592918,1722264632527,-1165.18,9.725e-05,2]
[333592919,1722264632537,-2249.6,9.733e-05,2]
[333592920,1722264632547,-250.0,9.791e-05,2]
[333592921,1722264632556,-300.0,9.834e-05,2]
[333592922,1722264632565,-16600.99,9.835e-05,2]
[333592923,1722264632574,-150.0,9.888e-05,2]
[333592924,1722264632583,-1000.0,9.894e-05,2]
[333592925,1722264632593,-999.99,9.965e-05,2]
[333592926,1722264632602,-8765.68,9.965e-05,2]
[333592927,1722264632612,-371.5992053,0.0001,2]
[333592928,1722264632620,-1250.0,0.0001,2]
[333592929,1722264632630,-192.51,0.00010108,2]
[333592930,1722264632639,-150.0,0.00010192,2]
[333592931,1722264632648,-150.0,0.00010192,2]
[333592932,1722264632658,-150.0,0.00010192,2]
[333592933,1722264632674,-150.0,0.00010192,2]
[333592934,1722264632683,-300.0,0.00010278,2]
[333592935,1722264632693,-150.0,0.00010278,2]
[333592936,1722264632702,-300.0,0.00010278,2]
[333592937,1722264632711,-1596.55,0.00010448,2]
[333592938,1722264632722,-675.94,0.00010464,2]
[333592939,1722264632731,-150.0,0.00010572,2]
[333592940,1722264632740,-17661.2853,0.00010573,2]
[333592941,1722264632752,-500.0,0.0001075,2]
[333592942,1722264632761,-500.0,0.00010759,2]
[333592943,1722264632771,-500.0,0.00010768,2]
[333592944,1722264632780,-1394.18275904,0.0001077,2]
[333592945,1722264632790,-500.0,0.00010777,2]
[333592946,1722264632799,-500.0,0.00010786,2]
[333592947,1722264632809,-500.0,0.00010794,2]
[333592948,1722264632818,-500.0,0.00010803,2]
[333592949,1722264632827,-500.0,0.00010812,2]
[333592950,1722264632837,-420.0,0.00010818,2]
[333592951,1722264632846,-500.0,0.00010821,2]
[333592952,1722264632856,-500.0,0.0001083,2]
[333592953,1722264632865,-500.0,0.00010838,2]
[333592954,1722264632875,-500.0,0.00010847,2]
[333592955,1722264632885,-500.0,0.00010856,2]
[333592956,1722264632894,-500.0,0.00010865,2]
[333592957,1722264632903,-2500.0,0.00010865,2]
[333592958,1722264632914,-500.0,0.00010874,2]
[333592959,1722264632923,-500.0,0.00010882,2]
[333592960,1722264632933,-230.0229,0.0001089,2]
[333592961,1722264632942,-108.62869375,0.0001089,2]
[333592962,1722264633149,-67.14420625,0.0001089,2]
[333592963,1722264633159,-500.0,0.00010891,2]
[333592964,1722264633187,-5036.0,0.000109,2]
[333592965,1722264633196,-1297.05579375,0.000109,2]
[333592966,1722264633215,-5647.58955685,0.000109,2]
[333592974,1722264639270,-3604.7946494,0.000109,2]
[333592976,1722264639280,-295.9404,0.000109,2]
[333592978,1722264639289,-461.36,0.000109,2]
[333592979,1722264639299,-947.5427,0.000109,2]
[333592980,1722264639308,-58125.753,0.000109,2]
[333592981,1722264639317,-165.7714,0.000109,2]
[333592982,1722264639327,-2622.9738,0.000109,2]
[333592983,1722264639336,-500.0,0.000109,2]
[333592984,1722264639350,-163.8951949,0.000109,2]
[333592985,1722264639359,-285.50273632,0.000109,2]
[333592986,1722264639368,-163.36125358,0.000109,2]
[333592987,1722264639378,-221.07,0.00010904,2]
[333592988,1722264639389,-500.0,0.00010958,2]
[333592989,1722264639398,-500.0,0.00010958,2]
[333592990,1722264639408,-52.9461778,0.00010958,2]
[333592991,1722264639420,-447.0538222,0.00010958,2]
[333592992,1722264639430,-277.43926464,0.00010958,2]
[333592993,1722264639443,-222.56073536,0.00010958,2]
[333592994,1722264639453,-500.0,0.00010958,2]
[333592995,1722264639463,-500.0,0.00010958,2]
[333592996,1722264639473,-500.0,0.00010958,2]
[333592997,1722264639489,-60.46752313,0.00010958,2]
[333592998,1722264639506,-332.21814,0.00010958,2]
[333592999,1722264639519,-107.31433687,0.00010958,2]
[333593000,1722264639529,-500.0,0.00010958,2]
[333593001,1722264639539,-68.39889945,0.00010958,2]
[333593002,1722264639554,-431.60110055,0.00010958,2]
[333593003,1722264639564,-331.09249321,0.00010958,2]
[333593004,1722264639576,-168.90750679,0.00010958,2]
[333593005,1722264639585,-209.87918793,0.00010958,2]
[333593006,1722264639602,-290.12081207,0.00010958,2]
[333593007,1722264639613,-500.0,0.00010958,2]
[333593008,1722264639622,-500.0,0.00010958,2]
[333593009,1722264639631,-410.37,0.00010958,2]
[333593010,1722264639641,-500.0,0.00010958,2]
[333593011,1722264639650,-576.6,0.00010958,2]
[333593012,1722264639659,-500.0,0.00010958,2]
[333593013,1722264639669,-500.0,0.00010958,2]
[333593014,1722264639679,-307.73466417,0.00010958,2]
[333593015,1722264639688,-317.91,0.00010958,2]
[333593016,1722264639698,-247.14,0.00010958,2]
[333593018,1722264639707,-500.0,0.00010958,2]
[333593019,1722264639716,-500.0,0.00010958,2]
[333593021,1722264639725,-500.0,0.00010958,2]
[333593023,1722264639741,-500.0,0.00010958,2]
[333593024,1722264639755,-500.0,0.00010958,2]
[333593025,1722264639764,-500.0,0.00010958,2]
[333593026,1722264639774,-500.0,0.00010958,2]
[333593027,1722264639783,-500.0,0.00010958,2]
[333593028,1722264639793,-500.0,0.00010958,2]
[333593029,1722264639803,-500.0,0.00010958,2]
[333593030,1722264639812,-500.0,0.00010958,2]
[333593031,1722264639822,-500.0,0.00010958,2]
[333593032,1722264639831,-398.96,0.00010958,2]
[333593033,1722264639841,-500.0,0.00010958,2]
[333593034,1722264639850,-500.0,0.00010958,2]
[333593035,1722264639860,-500.0,0.00010958,2]
[333593036,1722264639869,-500.0,0.00010958,2]
[333593037,1722264639879,-500.0,0.00010958,2]
[333593038,1722264639889,-500.0,0.00010958,2]